bitfinex/quotes_BTCUSD_20260126
["timestamp","ask_amount","ask_price","bid_price","bid_amount"]
[1769446352653,0.03,87871.0,87854.0,0.02304499]
[1769446352853,0.03,87871.0,87855.0,0.68132699]
[1769446353938,0.03,87877.0,87855.0,0.68132699]
[1769446354689,0.05464272,87875.0,87855.0,0.68132699]
[1769446355035,0.06827603,87879.0,87855.0,0.68132699]
[1769446355036,0.03,87873.0,87855.0,0.68132699]
[1769446356212,0.03,87873.0,87853.0,0.68132699]
[1769446356346,0.03,87873.0,87855.0,0.69959]
[1769446356770,0.64415412,87884.0,87852.0,0.0004063]
[1769446356771,0.03,87872.0,87860.0,0.47706231]
[1769446356975,0.02464272,87881.0,87862.0,0.68132699]
[1769446357137,0.02464272,87881.0,87863.0,0.68132699]
[1769446357348,0.22755107,87893.0,87863.0,0.68132699]
[1769446357557,0.02464272,87890.0,87864.0,0.02304499]
[1769446357784,0.02464272,87890.0,87865.0,0.68132699]
[1769446357785,0.01137798,87889.0,87865.0,0.68132699]
[1769446357983,0.06602083,87888.0,87865.0,0.68132699]
[1769446358198,0.03,87886.0,87865.0,0.68132699]
[1769446358398,0.05464272,87886.0,87865.0,0.68132699]
[1769446358858,0.06602109,87886.0,87865.0,0.68132699]
[1769446359070,0.04137902,87881.0,87864.0,0.02304499]
[1769446359220,0.03,87881.0,87861.0,0.17488]
[1769446359424,0.03,87873.0,87861.0,0.17488]
[1769446359615,0.03,87869.0,87861.0,0.17488]
[1769446360224,0.03,87865.0,87861.0,0.17488]
[1769446360426,0.05464272,87862.0,87861.0,0.17488]
[1769446360641,0.05464272,87862.0,87852.0,0.0004063]
[1769446360642,0.05464272,87860.0,87852.0,0.0004063]
[1769446361650,0.0682858,87866.0,87844.0,0.17492]
[1769446361651,0.05464272,87858.0,87844.0,0.17492]
[1769446362695,0.05464272,87856.0,87844.0,0.17492]
[1769446363238,0.05464272,87856.0,87843.0,0.0004]
[1769446363239,0.03,87852.0,87843.0,0.0004]
[1769446364171,0.03,87851.0,87843.0,0.0004]
[1769446365490,0.07881896,87851.0,87843.0,0.0004]
[1769446366126,0.03,87851.0,87843.0,0.0004]
[1769446366523,0.06602562,87851.0,87843.0,0.0004]
[1769446366724,0.0413829,87851.0,87843.0,0.0004]
[1769446366918,0.03,87844.0,87836.0,0.04556]
[1769446367132,0.03,87842.0,87836.0,0.04556]
[1769446367308,0.02423642,87843.0,87836.0,0.04556]
[1769446368857,0.17492,87856.0,87836.0,0.0458716]
[1769446368858,0.03,87849.0,87836.0,0.0458716]
[1769446369066,0.03,87847.0,87836.0,0.0458716]
[1769446369642,0.02435715,87848.0,87836.0,0.0458716]
[1769446369643,0.03,87845.0,87836.0,0.0458716]
[1769446369952,0.06829458,87855.0,87836.0,0.0458716]
[1769446369953,0.01137578,87906.0,87871.0,0.01138031]
[1769446370255,0.09111559,87916.0,87883.0,0.0243143]
[1769446370256,0.17224,87909.0,87883.0,0.0243143]
[1769446370595,0.69726423,87903.0,87874.0,0.64070588]
[1769446370818,0.72162138,87903.0,87875.0,0.0243143]
[1769446371031,0.47949641,87895.0,87872.0,0.035]
[1769446371233,0.03,87894.0,87872.0,0.035]
[1769446371699,0.03,87894.0,87873.0,0.0243143]
[1769446372324,0.02435715,87897.0,87872.0,0.035]
[1769446372325,0.03,87889.0,87872.0,0.035]
[1769446372526,0.50949641,87889.0,87872.0,0.035]
[1769446372707,0.03,87889.0,87872.0,0.043056]
[1769446373040,0.03,87889.0,87873.0,0.0243143]
[1769446373465,0.17496,87895.0,87872.0,0.043056]
[1769446373466,0.03,87888.0,87872.0,0.035]
[1769446373594,0.17496,87895.0,87868.0,0.04556]
[1769446373595,0.03,87871.0,87868.0,0.04556]
[1769446374709,0.47949641,87882.0,87868.0,0.04556]
[1769446374710,0.03,87870.0,87868.0,0.04556]
[1769446375786,0.03,87881.0,87868.0,0.04556]
[1769446377177,0.07515374,87889.0,87868.0,0.04556]
[1769446377178,0.03,87880.0,87868.0,0.04556]
[1769446377374,0.45497205,87918.0,87873.0,0.02649208]
[1769446377375,0.01137656,87900.0,87873.0,0.02649208]
[1769446377727,0.62495297,87900.0,87873.0,0.02649208]
[1769446377909,0.61357641,87900.0,87873.0,0.02649208]
[1769446378123,0.09069219,87924.0,87891.0,0.64070588]
[1769446378342,0.03,87930.0,87900.0,0.64070588]
[1769446378551,0.03,87930.0,87903.0,0.02991314]
[1769446378734,0.03,87930.0,87904.0,0.04128918]
[1769446378872,0.03,87930.0,87904.0,0.01137604]
[1769446379071,0.03,87930.0,87905.0,0.02991314]
[1769446379524,0.28336402,87933.0,87905.0,0.02991314]
[1769446379525,0.03,87929.0,87905.0,0.02991314]
[1769446379874,0.03,87924.0,87905.0,0.02991314]
[1769446380605,0.01137397,87920.0,87892.0,0.17492]
[1769446380803,0.03,87904.0,87892.0,0.17492]
[1769446381363,0.03,87904.0,87894.0,0.0243143]
[1769446381744,0.03,87903.0,87894.0,0.0243143]
[1769446382736,0.03,87902.0,87894.0,0.0243143]
[1769446382930,0.0004234,87916.0,87894.0,0.0243143]
[1769446383360,0.66803852,87916.0,87894.0,0.0243143]
[1769446383720,0.06709793,87915.0,87894.0,0.0243143]
[1769446383915,0.03,87914.0,87894.0,0.0243143]
[1769446384545,0.03,87914.0,87895.0,0.65208309]
[1769446384742,0.0004234,87916.0,87902.0,0.02795563]
[1769446384743,0.03,87913.0,87902.0,0.02795563]
[1769446384947,0.03,87913.0,87904.0,0.02795563]
[1769446385349,0.17476472,87965.0,87916.0,0.64070588]
[1769446385599,0.13612763,87974.0,87916.0,0.64070588]
[1769446385600,0.66310475,87944.0,87917.0,0.02795563]
[1769446385729,0.035,87949.0,87917.0,0.02795563]
[1769446385730,0.03,87936.0,87917.0,0.02795563]
[1769446385933,0.03,87932.0,87911.0,0.17492]
[1769446386139,0.69310475,87930.0,87911.0,0.17492]
[1769446386553,0.03,87926.0,87911.0,0.17492]
[1769446386755,0.03,87924.0,87911.0,0.17492]
[1769446387875,0.03,87931.0,87911.0,0.17492]
[1769446388101,0.03,87929.0,87911.0,0.17492]
[1769446388969,0.69310475,87928.0,87911.0,0.17492]
[1769446389204,0.0568646,87929.0,87899.0,0.03747907]
[1769446389405,0.51993395,87924.0,87900.0,0.01137656]
[1769446389881,0.51993395,87924.0,87900.0,0.05396625]
[1769446390231,0.51993395,87924.0,87900.0,0.04258969]
[1769446390434,0.51993395,87924.0,87900.0,0.05396625]
[1769446390633,0.51993395,87924.0,87901.0,0.01137643]
[1769446390989,0.51993395,87924.0,87902.0,0.04258969]
[1769446392825,0.03,87922.0,87902.0,0.04258969]
[1769446393570,0.03,87922.0,87906.0,0.04708875]
[1769446393842,0.03,87921.0,87906.0,0.04708875]
[1769446394019,0.03,87919.0,87906.0,0.04708875]
[1769446394935,0.03,87919.0,87889.0,0.05693798]
[1769446394936,0.03,87905.0,87895.0,0.04708875]
[1769446395135,0.03,87905.0,87890.0,0.1476]
[1769446395136,0.51993395,87905.0,87890.0,0.1476]
[1769446395588,0.03,87905.0,87890.0,0.1476]
[1769446395785,0.03,87905.0,87893.0,0.04933787]
[1769446395955,0.03,87904.0,87893.0,0.04933787]
[1769446396137,0.0113741,87919.0,87889.0,0.04556]
[1769446396138,0.0113719,87936.0,87909.0,0.04933787]
[1769446396340,0.0113719,87936.0,87903.0,0.01137617]
[1769446396341,0.05685661,87941.0,87911.0,0.04933787]
[1769446396666,0.00704347,87940.0,87912.0,0.04933787]
[1769446396870,0.01137138,87940.0,87912.0,0.04933787]
[1769446397072,0.03,87934.0,87912.0,0.08876354]
[1769446397498,0.03,87932.0,87912.0,0.08876354]
[1769446397770,0.03,87932.0,87911.0,0.04933787]
[1769446398207,0.03,87930.0,87911.0,0.04933787]
[1769446399114,0.01137151,87939.0,87904.0,0.64070588]
[1769446399115,0.68516775,87928.0,87904.0,0.17484]
[1769446399978,0.68516775,87928.0,87899.0,0.05158725]
[1769446399979,0.03,87924.0,87899.0,0.05158725]
[1769446400097,0.03704347,87920.0,87901.0,0.17484]
[1769446400501,0.03,87920.0,87902.0,0.05383628]
[1769446400720,0.03,87920.0,87905.0,0.68689601]
[1769446400949,0.03,87920.0,87903.0,0.05383628]
[1769446401176,0.03,87919.0,87906.0,0.01137578]
[1769446401501,0.03,87919.0,87907.0,0.05383628]
[1769446402057,0.03,87919.0,87909.0,0.05383628]
[1769446402291,0.03704347,87931.0,87909.0,0.05383628]
[1769446403278,0.03,87934.0,87910.0,0.01137527]
[1769446403472,0.03,87934.0,87913.0,0.05383628]
[1769446403798,0.05685549,87943.0,87913.0,0.05383628]
[1769446403799,0.03,87932.0,87913.0,0.05383628]
[1769446403963,0.03,87930.0,87913.0,0.05383628]
[1769446404159,0.03,87928.0,87913.0,0.05383628]
[1769446404363,0.17484,87946.0,87905.0,0.68689601]
[1769446404364,0.03,87926.0,87906.0,0.05608548]
[1769446406249,0.03,87932.0,87906.0,0.05608548]
[1769446406404,0.03,87926.0,87906.0,0.05608548]
[1769446406607,0.03704347,87924.0,87906.0,0.05608548]
[1769446408255,0.00704347,87922.0,87906.0,0.05608548]
[1769446408439,0.03,87919.0,87906.0,0.05608548]
[1769446409096,0.03704347,87919.0,87904.0,0.17484]
[1769446409416,0.03,87917.0,87904.0,0.17484]
[1769446410931,0.03,87916.0,87904.0,0.17484]
[1769446411133,0.00704347,87922.0,87904.0,0.18621604]
[1769446411454,0.00704347,87922.0,87904.0,0.23092548]
[1769446411779,0.03,87921.0,87904.0,0.23092548]
[1769446412333,0.01137294,87928.0,87904.0,0.23092548]
[1769446412334,0.03,87917.0,87904.0,0.23092548]
[1769446413160,0.03704347,87917.0,87904.0,0.23092548]
[1769446413498,0.03,87916.0,87904.0,0.23092548]
[1769446414823,0.03,87922.0,87904.0,0.23092548]
[1769446415080,0.03704347,87918.0,87904.0,0.23092548]
[1769446415214,0.03,87918.0,87904.0,0.23092548]
[1769446415421,0.03,87916.0,87905.0,0.05383628]
[1769446416398,0.03,87922.0,87905.0,0.05383628]
[1769446416594,0.03704347,87920.0,87905.0,0.05383628]
[1769446417407,0.03,87920.0,87906.0,0.68689601]
[1769446417576,0.03,87919.0,87909.0,0.05158706]
[1769446417772,0.03,87919.0,87911.0,0.05158706]
[1769446418667,0.03,87925.0,87911.0,0.05158706]
[1769446419889,0.03,87924.0,87911.0,0.05158706]
[1769446420884,0.00704347,87927.0,87911.0,0.05158706]
[1769446420885,0.03,87926.0,87911.0,0.05158706]
[1769446421529,0.03,87926.0,87914.0,0.68689601]
[1769446421846,0.03,87931.0,87915.0,0.03948706]
[1769446422060,0.03,87929.0,87915.0,0.03948706]
[1769446422280,0.03,87929.0,87917.0,0.03948706]
[1769446422505,0.03,87929.0,87911.0,0.09133231]
[1769446422506,0.03,87929.0,87919.0,0.03948706]
[1769446422737,0.03,87929.0,87920.0,0.03948706]
[1769446422937,0.00704347,87938.0,87920.0,0.03948706]
[1769446423078,0.01137061,87946.0,87920.0,0.03948706]
[1769446423079,0.03,87935.0,87920.0,0.03948706]
[1769446424318,0.03,87951.0,87933.0,0.68689601]
[1769446424546,0.16950815,87979.0,87953.0,0.03479058]
[1769446424547,0.0002,87979.0,87953.0,0.03479058]
[1769446424702,0.0002,87979.0,87957.0,0.03479058]
[1769446424908,0.0002,87979.0,87960.0,0.68689601]
[1769446425127,0.0002,87979.0,87963.0,0.03479058]
[1769446425320,0.0302,87979.0,87964.0,0.03479058]
[1769446425480,0.0302,87979.0,87964.0,0.02479058]
[1769446425688,0.030438,87979.0,87964.0,0.02479058]
[1769446425894,0.04180434,87979.0,87964.0,0.02479058]
[1769446426091,0.04180434,87979.0,87948.0,0.0250151]
[1769446426092,0.03,87972.0,87948.0,0.0250151]
[1769446426316,0.03,87972.0,87952.0,0.0250151]
[1769446426517,0.030238,87972.0,87953.0,0.0250151]
[1769446426676,0.030238,87972.0,87955.0,0.0250151]
[1769446426894,0.030238,87972.0,87958.0,0.68689601]
[1769446427230,0.03,87971.0,87963.0,0.0250151]
[1769446427463,0.03,87971.0,87964.0,0.02426832]
[1769446427611,0.030238,87971.0,87964.0,0.02426832]
[1769446428012,0.030238,87971.0,87963.0,0.17484]
[1769446428013,0.030238,87971.0,87963.0,0.17409322]
[1769446428216,0.03,87969.0,87962.0,0.17484]
[1769446428418,0.03,87965.0,87953.0,0.17484]
[1769446428617,0.03502421,87966.0,87951.0,0.17484]
[1769446428618,0.05365619,87961.0,87951.0,0.17484]
[1769446429001,0.03,87961.0,87951.0,0.17484]
[1769446429677,0.000238,87969.0,87953.0,0.02288556]
[1769446429811,0.000238,87969.0,87951.0,0.17484]
[1769446429812,0.000238,87969.0,87954.0,0.67228865]
[1769446430619,0.000238,87969.0,87954.0,0.02288556]
[1769446430821,0.000238,87969.0,87951.0,0.17484]
[1769446431028,0.03,87967.0,87951.0,0.17484]
[1769446431472,0.03,87967.0,87940.0,0.48799609]
[1769446431473,0.02261512,87962.0,87922.0,0.08993698]
[1769446431671,0.02261512,87962.0,87901.0,0.16736673]
[1769446431672,0.03,87916.0,87913.0,0.09007118]
[1769446431852,0.1748,87940.0,87914.0,0.1119174]
[1769446432087,0.1748,87940.0,87913.0,0.0001342]
[1769446432088,0.0339878,87930.0,87913.0,0.0001342]
[1769446432330,0.02159515,87929.0,87913.0,0.0001342]
[1769446432619,0.09085154,87930.0,87929.0,0.01]
[1769446432620,0.05686341,87930.0,87929.0,0.01]
[1769446432801,0.01137268,87930.0,87916.0,0.64940309]
[1769446433047,0.03,87929.0,87917.0,0.1748]
[1769446433259,0.03,87926.0,87917.0,0.1748]
[1769446433498,0.08686739,87924.0,87922.0,0.001]
[1769446433704,0.8177296,87950.0,87917.0,0.1748]
[1769446433705,0.08687083,87919.0,87917.0,0.1748]
[1769446433926,0.08687083,87919.0,87913.0,0.0001342]
[1769446433927,0.01137449,87916.0,87913.0,0.0001342]
[1769446434157,0.08687311,87915.0,87913.0,0.0001342]
[1769446434323,0.08687376,87914.0,87913.0,1.064e-05]
[1769446434899,0.10948888,87914.0,87913.0,1.064e-05]
[1769446435956,0.10948888,87914.0,87898.0,0.1748]
[1769446435957,0.03,87899.0,87898.0,0.1748]
[1769446436183,0.0113763,87902.0,87901.0,0.01]
[1769446436402,0.06825782,87902.0,87901.0,0.01]
[1769446436619,0.0113763,87902.0,87901.0,0.01]
[1769446436830,0.03,87894.0,87891.0,0.0003722]
[1769446437050,0.03,87894.0,87892.0,0.1748]
[1769446437288,0.03,87894.0,87891.0,0.0003722]
[1769446437289,0.03,87894.0,87891.0,0.1751722]
[1769446437933,0.03,87893.0,87891.0,0.1751722]
[1769446438119,0.03,87893.0,87891.0,0.0003722]
[1769446438608,0.01137669,87899.0,87891.0,0.0003722]
[1769446438806,0.03,87899.0,87891.0,0.0003722]
[1769446439029,0.04137669,87899.0,87891.0,0.0003722]
[1769446439187,0.03,87899.0,87891.0,0.0003722]
[1769446439836,0.0113763,87902.0,87891.0,0.0003722]
[1769446439837,0.03,87898.0,87891.0,0.0003722]
[1769446440242,0.04436248,87898.0,87891.0,0.1752122]
[1769446440561,0.03,87896.0,87891.0,0.0003722]
[1769446441406,0.02261512,87905.0,87891.0,0.0003722]
[1769446441636,0.03,87904.0,87891.0,0.0003722]
[1769446441837,0.02261512,87905.0,87891.0,0.0003722]
[1769446441838,0.03,87902.0,87891.0,0.0003722]
[1769446442154,0.03,87900.0,87891.0,0.0003722]
[1769446442735,0.05688362,87899.0,87891.0,0.0003722]
[1769446442907,0.05688362,87899.0,87868.0,0.0003722]
[1769446442908,0.03,87889.0,87886.0,0.17484]
[1769446443109,0.0339922,87896.0,87878.0,0.04552]
[1769446443110,0.02261512,87910.0,87885.0,0.64940309]
[1769446443341,0.01137552,87908.0,87885.0,0.66034982]
[1769446443530,0.05687929,87906.0,87883.0,0.17484]
[1769446443735,0.00841795,87910.0,87884.0,0.64940309]
[1769446443736,0.02261512,87904.0,87884.0,0.64940309]
[1769446443907,0.03,87903.0,87884.0,0.64940309]
[1769446446767,0.03,87909.0,87885.0,0.08875553]
[1769446446968,0.03,87909.0,87891.0,0.64940309]
[1769446448002,0.03,87908.0,87891.0,0.64940309]
[1769446448386,0.0169211,87927.0,87899.0,0.64940309]
[1769446448584,0.0169211,87927.0,87898.0,0.47662471]
[1769446448585,0.0169211,87927.0,87903.0,0.64940309]
[1769446448773,0.0169211,87927.0,87905.0,0.64940309]
[1769446448970,0.03,87926.0,87905.0,0.64940309]
[1769446449234,0.05261512,87926.0,87905.0,0.64940309]
[1769446449436,0.05686976,87921.0,87905.0,0.64940309]
[1769446449640,0.03,87916.0,87905.0,0.64940309]
[1769446450394,0.03,87916.0,87905.0,0.69929363]
[1769446450781,0.03,87922.0,87905.0,0.69929363]
[1769446451184,0.03,87922.0,87905.0,0.64940309]
[1769446452260,0.05261512,87930.0,87906.0,0.01214246]
[1769446452411,0.03,87930.0,87901.0,0.03186326]
[1769446452619,0.03,87930.0,87907.0,0.64940309]
[1769446452828,0.03,87930.0,87902.0,0.0568814]
[1769446452829,0.0063987,87929.0,87910.0,0.01214246]
[1769446453036,0.02901382,87929.0,87911.0,0.64940309]
[1769446453219,0.03,87928.0,87911.0,0.64940309]
[1769446453629,0.05261512,87928.0,87911.0,0.64940309]
[1769446456353,0.05261512,87928.0,87913.0,0.64940309]
[1769446456755,0.03,87936.0,87913.0,0.64940309]
[1769446456959,0.02261512,87945.0,87922.0,0.02288556]
[1769446457162,0.02261512,87945.0,87926.0,0.02288556]
[1769446457361,0.02261512,87945.0,87928.0,0.64940309]
[1769446457983,0.03,87942.0,87928.0,0.64940309]
[1769446458189,0.03,87942.0,87906.0,0.01137578]
[1769446458190,0.03,87931.0,87910.0,0.02288556]
[1769446458519,0.0003722,87946.0,87900.0,0.01137656]
[1769446458520,0.03,87925.0,87914.0,0.17484]
[1769446458722,0.03,87925.0,87915.0,0.69193215]
[1769446459404,0.03,87934.0,87915.0,0.69193215]
[1769446459603,0.05416707,87934.0,87915.0,0.69193215]
[1769446459807,0.05416707,87934.0,87915.0,0.78542999]
[1769446459970,0.05416707,87934.0,87915.0,0.69193215]
[1769446460169,0.03,87932.0,87915.0,0.69193215]
[1769446461519,0.03,87932.0,87900.0,0.47662471]
[1769446461520,0.03,87931.0,87900.0,0.47662471]
[1769446461742,0.03,87923.0,87902.0,0.69193215]
[1769446461943,0.05416707,87923.0,87903.0,0.01137617]
[1769446462099,0.05416707,87923.0,87906.0,0.69193215]
[1769446462100,0.03,87923.0,87906.0,0.69193215]
[1769446462311,0.03,87923.0,87899.0,0.2275338]
[1769446462312,0.03,87911.0,87891.0,0.69193215]
[1769446462520,0.05416707,87911.0,87891.0,0.69193215]
[1769446462717,0.03478782,87914.0,87891.0,0.69193215]
[1769446462718,0.03,87909.0,87891.0,0.69193215]
[1769446463928,0.05416707,87908.0,87891.0,0.69193215]
[1769446465348,0.02416707,87906.0,87883.0,0.02268626]
[1769446465564,0.03,87899.0,87881.0,0.83953215]
[1769446465802,0.05416707,87899.0,87881.0,0.83953215]
[1769446466009,0.05416707,87897.0,87881.0,0.83953215]
[1769446466551,0.03,87897.0,87881.0,0.83953215]
[1769446466949,0.03,87896.0,87881.0,0.83953215]
[1769446467531,0.03,87896.0,87882.0,0.02268626]
[1769446467874,0.03,87896.0,87883.0,0.69193215]
[1769446468016,0.03,87895.0,87883.0,0.69193215]
[1769446468399,0.03,87895.0,87883.0,0.71461841]
[1769446468931,0.03,87902.0,87883.0,0.71461841]
[1769446469541,0.03,87902.0,87884.0,0.02268626]
[1769446469705,0.03,87902.0,87884.0,0.71461841]
[1769446469910,0.24309183,87910.0,87884.0,0.71461841]
[1769446469911,0.06968707,87917.0,87891.0,0.69193215]
[1769446470113,0.06968707,87917.0,87890.0,0.47662471]
[1769446470114,0.03,87916.0,87894.0,0.02268626]
[1769446470346,0.03,87916.0,87897.0,0.69193215]
[1769446470602,0.03,87916.0,87899.0,0.02268626]
[1769446470722,0.03,87916.0,87899.0,0.71461841]
[1769446471128,0.03,87916.0,87899.0,0.78608025]
[1769446471369,0.03,87916.0,87899.0,0.71461841]
[1769446473061,0.04137449,87916.0,87899.0,0.71461841]
[1769446473229,0.06478782,87916.0,87899.0,0.71461841]
[1769446474361,0.06478782,87916.0,87887.0,0.01137824]
[1769446474362,0.03,87915.0,87901.0,0.69193215]
[1769446474562,0.03,87915.0,87903.0,0.69193215]
[1769446474773,0.03,87915.0,87892.0,0.01137759]
[1769446474774,0.03,87915.0,87905.0,0.02268626]
[1769446474962,0.03,87915.0,87906.0,0.69193215]
[1769446475169,0.17484,87921.0,87908.0,0.69193215]
[1769446475367,0.03,87920.0,87911.0,0.02268626]
[1769446475755,0.03,87920.0,87890.0,0.48800256]
[1769446475756,0.06185985,87920.0,87890.0,0.47662471]
[1769446475939,0.06185985,87920.0,87893.0,0.69193215]
[1769446475940,0.03,87918.0,87893.0,0.69193215]
[1769446476143,0.03,87918.0,87896.0,0.02268626]
[1769446476343,0.03,87918.0,87899.0,0.69193215]
[1769446476670,0.03,87918.0,87903.0,0.69193215]
[1769446476896,0.03,87917.0,87904.0,0.02268626]
[1769446477094,0.03,87917.0,87904.0,0.71461841]
[1769446477869,0.03,87920.0,87904.0,0.71461841]
[1769446478301,0.04137397,87920.0,87904.0,0.71461841]
[1769446478507,0.20962782,87921.0,87890.0,0.47662471]
[1769446478508,0.03,87915.0,87897.0,0.69193215]
[1769446478707,0.03,87915.0,87899.0,0.71461841]
[1769446478909,0.09165934,87918.0,87899.0,0.71461841]
[1769446478910,0.03,87913.0,87899.0,0.71461841]
[1769446479155,0.03,87913.0,87899.0,0.57017429]
[1769446479359,0.07102159,87919.0,87889.0,0.02268626]
[1769446479360,0.00177788,87905.0,87889.0,0.02268626]
[1769446479856,0.03,87906.0,87890.0,0.02268626]
[1769446479857,0.00673201,87904.0,87890.0,0.02268626]
[1769446480061,0.03673201,87904.0,87890.0,0.71461841]
[1769446480203,0.01137591,87905.0,87888.0,0.1476]
[1769446480204,0.03,87899.0,87888.0,0.1476]
[1769446480404,0.04576708,87895.0,87872.0,0.69193215]
[1769446480659,0.06993415,87895.0,87873.0,0.71461841]
[1769446480893,0.03,87892.0,87873.0,0.71461841]
[1769446481767,0.03,87892.0,87873.0,0.81836547]
[1769446481968,0.03,87891.0,87875.0,0.69193215]
[1769446482183,0.03,87891.0,87876.0,0.71461841]
[1769446482536,0.03,87891.0,87877.0,0.71461841]
[1769446483071,0.03,87894.0,87877.0,0.71461841]
[1769446484556,0.03,87900.0,87878.0,0.07146184]
[1769446484743,0.03,87894.0,87879.0,0.02268626]
[1769446485787,0.06826178,87897.0,87879.0,0.02268626]
[1769446485788,0.03,87893.0,87879.0,0.02268626]
[1769446486197,0.03,87893.0,87878.0,0.07146184]
[1769446486198,0.03,87893.0,87880.0,0.69193215]
[1769446486434,0.03,87893.0,87881.0,0.02268626]
[1769446486949,0.03,87892.0,87881.0,0.02268626]
[1769446487698,0.03,87891.0,87881.0,0.02268626]
[1769446488188,0.03,87891.0,87877.0,0.0002496]
[1769446488189,0.00015767,87886.0,87877.0,0.0002496]
[1769446488358,0.03,87883.0,87877.0,0.0002496]
[1769446488568,0.03,87883.0,87863.0,0.69193215]
[1769446488569,0.03,87878.0,87860.0,0.0002905]
[1769446488811,0.01137915,87880.0,87860.0,0.0002905]
[1769446489012,0.01137876,87883.0,87861.0,0.02499999]
[1769446489141,0.0863009,87885.0,87861.0,0.02499999]
[1769446489142,6.825e-05,87882.0,87861.0,0.02499999]
[1769446489346,6.825e-05,87882.0,87862.0,0.69448864]
[1769446489548,6.825e-05,87882.0,87863.0,0.06947791]
[1769446491927,0.03,87882.0,87863.0,0.06947791]
[1769446492131,0.01137889,87882.0,87863.0,0.06947791]
[1769446492335,0.03,87880.0,87862.0,0.02499999]
[1769446493851,0.03,87879.0,87862.0,0.02499999]
[1769446494287,0.03,87879.0,87860.0,0.0002905]
[1769446494288,0.03,87879.0,87864.0,0.02804842]
[1769446494951,0.03,87878.0,87864.0,0.02804842]
[1769446495549,0.03,87878.0,87865.0,0.66948865]
[1769446495767,0.03,87878.0,87866.0,0.0281401]
[1769446495949,0.03,87884.0,87866.0,0.0281401]
[1769446496862,0.06826692,87891.0,87865.0,0.66948865]
[1769446496863,0.03,87896.0,87870.0,0.47762389]
[1769446497039,0.03,87896.0,87867.0,0.08117276]
[1769446497040,0.03,87896.0,87874.0,0.0281401]
[1769446497225,0.03,87896.0,87877.0,0.66948865]
[1769446497409,0.03,87896.0,87868.0,0.0113807]
[1769446497410,0.03,87896.0,87881.0,0.66948865]
[1769446497610,0.03,87896.0,87885.0,0.66948865]
[1769446497809,0.03,87896.0,87882.0,0.06808685]
[1769446497810,0.03,87895.0,87888.0,0.02818725]
[1769446498044,0.03,87895.0,87891.0,0.66948865]
[1769446498237,0.03,87895.0,87892.0,0.02818725]
[1769446498440,0.03,87895.0,87885.0,0.66948865]
[1769446498734,0.03,87895.0,87885.0,0.02818725]
[1769446498904,0.03,87898.0,87885.0,0.02818725]
[1769446499104,0.04437643,87898.0,87885.0,0.02818725]
[1769446499438,0.03,87896.0,87880.0,0.66948865]
[1769446499584,0.03,87896.0,87880.0,0.6963028]
[1769446499784,0.03,87896.0,87881.0,0.02681415]
[1769446500193,0.03,87895.0,87881.0,0.02681415]
[1769446500459,0.08688799,87892.0,87867.0,0.06979193]
[1769446500630,0.08688799,87892.0,87860.0,0.0002905]
[1769446500631,0.03,87888.0,87869.0,0.02681415]
[1769446501285,0.03,87884.0,87869.0,0.02681415]
[1769446501440,0.01137785,87890.0,87861.0,0.02681415]
[1769446501441,0.03,87878.0,87861.0,0.02681415]
[1769446501653,0.0413798,87875.0,87860.0,0.0002905]
[1769446501844,0.03,87868.0,87850.0,0.02501287]
[1769446502052,0.03768361,87866.0,87850.0,0.02501287]
[1769446502253,0.85911232,87900.0,87845.0,0.84440865]
[1769446502254,0.01137941,87878.0,87866.0,0.01]
[1769446502505,0.01138018,87872.0,87855.0,0.02501287]
[1769446502689,0.01138018,87872.0,87855.0,0.09446302]
[1769446502690,0.01138044,87870.0,87855.0,0.09446302]
[1769446502991,0.03,87868.0,87850.0,0.66948865]
[1769446503291,0.03,87868.0,87845.0,0.17492]
[1769446503292,0.03,87868.0,87853.0,0.02501287]
[1769446504099,0.01495622,87875.0,87845.0,0.17492]
[1769446504100,0.03,87864.0,87845.0,0.02321178]
[1769446504302,0.03,87862.0,87845.0,0.02321178]
[1769446505080,0.04138239,87855.0,87842.0,0.0002905]
[1769446505281,0.03,87848.0,87842.0,0.0002905]
[1769446505488,0.04138329,87848.0,87842.0,0.00023286]
[1769446505691,0.03,87844.0,87842.0,0.00023286]
[1769446506043,0.01138355,87846.0,87842.0,0.00023286]
[1769446506044,0.03807488,87843.0,87842.0,0.00023286]
[1769446506256,0.03,87834.0,87825.0,0.0002905]
[1769446506456,0.03,87830.0,87825.0,0.0002905]
[1769446506666,0.01138653,87823.0,87817.0,0.0004]
[1769446506840,0.01138653,87823.0,87801.0,0.0229679]
[1769446506841,0.03,87819.0,87801.0,0.0229679]
[1769446507266,0.0113855,87831.0,87819.0,0.01]
[1769446507474,0.01138524,87833.0,87814.0,0.0229679]
[1769446507996,0.03,87832.0,87814.0,0.0229679]
[1769446508492,0.03,87832.0,87814.0,0.023083]
[1769446508785,0.04138602,87827.0,87814.0,0.0001151]
[1769446508989,0.04138666,87822.0,87814.0,0.0001151]
[1769446509145,0.03,87820.0,87814.0,0.0001151]
[1769446509614,0.03,87820.0,87803.0,0.0233679]
[1769446509804,0.04097027,87820.0,87803.0,0.0233679]
[1769446510005,0.03,87820.0,87803.0,0.0233679]
[1769446510205,0.03,87824.0,87803.0,0.0233679]
[1769446511731,0.0413864,87824.0,87803.0,0.0233679]
[1769446511955,0.01138653,87823.0,87803.0,0.0233679]
[1769446512233,0.04785992,87822.0,87803.0,0.0233679]
[1769446513446,0.0113864,87824.0,87805.0,0.66948865]
[1769446513447,0.03,87824.0,87805.0,0.66948865]
[1769446513637,0.03,87824.0,87809.0,0.69245655]
[1769446513854,0.03,87824.0,87810.0,0.0229679]
[1769446514005,0.03,87824.0,87810.0,0.69245655]
[1769446514193,0.001,87822.0,87810.0,0.69245655]
[1769446514598,0.01316659,87833.0,87810.0,0.69245655]
[1769446515622,0.03,87827.0,87810.0,0.69245655]
[1769446516060,0.02303837,87853.0,87827.0,0.01]
[1769446516253,0.09075104,87872.0,87827.0,0.01]
[1769446516254,0.02303837,87851.0,87831.0,0.0229679]